bitfinex/quotes_SOLUSD_20250204
["timestamp","ask_amount","ask_price","bid_price","bid_amount"]
[1738643005400,22.9545993,215.06,214.98,33.9747993]
[1738643005569,24.5811993,215.16,215.01,13.66282853]
[1738643005570,22.9545993,215.08,215.01,13.66282853]
[1738643005965,22.9545993,215.08,215.01,0.25098]
[1738643006697,23.4194993,215.08,215.01,0.25098]
[1738643006895,22.9545993,215.06,214.99,13.66282853]
[1738643008472,0.063,215.06,215.01,0.25098]
[1738643008677,23.0175993,215.06,215.01,0.25098]
[1738643008874,23.0175993,215.06,214.98,42.73534783]
[1738643008875,23.0175993,215.06,214.99,4.6513]
[1738643009084,22.9545993,215.04,214.98,6.3689]
[1738643009489,22.9545993,215.02,214.95,0.03]
[1738643009986,22.9545993,215.0,214.95,0.03]
[1738643010373,23.4196993,214.98,214.95,0.03]
[1738643011367,22.9545993,214.96,214.95,0.03]
[1738643012475,0.4651,214.98,214.95,0.03]
[1738643012476,22.9545993,214.98,214.95,0.03]
[1738643012675,22.9545993,215.0,214.95,0.03]
[1738643012887,22.9545993,215.0,214.95,15.67737188]
[1738643013493,22.9545993,215.0,214.95,0.03]
[1738643014074,22.9545993,215.05,214.97,22.9545993]
[1738643014489,22.9545993,214.99,214.95,0.03]
[1738643014690,22.9545993,214.96,214.95,0.03]
[1738643016067,22.9545993,215.02,214.95,23.2355793]
[1738643016389,22.9545993,215.04,214.98,0.25098]
[1738643016981,23.4824993,215.06,214.98,4.90248]
[1738643017193,22.9545993,215.04,214.98,0.25098]
[1738643018098,22.9545993,215.02,214.95,0.03]
[1738643018301,0.5279,215.06,214.95,0.03]
[1738643018302,22.9545993,215.0,214.95,0.03]
[1738643018491,22.9545993,214.98,214.95,0.03]
[1738643018999,117.2545993,215.04,214.98,0.25098]
[1738643019210,22.9545993,215.02,214.96,3.43642641]
[1738643019586,22.9545993,215.0,214.96,3.43642641]
[1738643020603,23.0175993,215.04,214.97,36.61742783]
[1738643020905,0.063,215.04,215.0,0.25098]
[1738643022281,0.063,215.04,214.97,32.06455023]
[1738643022282,23.0175993,215.04,214.97,32.06455023]
[1738643022588,23.0175993,215.04,215.01,3.43642641]
[1738643023106,22.9545993,215.02,215.01,3.43642641]
[1738643025001,23.4195993,215.02,215.01,3.43642641]
[1738643025304,94.3,215.03,215.01,3.43642641]
[1738643025305,0.063,215.04,215.01,3.43642641]
[1738643025496,22.9545993,215.02,215.01,3.43642641]
[1738643027212,23.0175993,215.04,215.01,3.43642641]
[1738643027508,23.4825993,215.04,214.97,3.43642641]
[1738643028313,23.0175993,215.04,214.98,0.25098]
[1738643029006,23.0175993,215.04,214.99,3.43642641]
[1738643029414,23.4825993,215.04,214.99,3.43642641]
[1738643030157,22.9545993,215.02,214.97,0.25098]
[1738643030696,22.9545993,214.98,214.96,3.43642641]
[1738643031097,0.4651,214.97,214.96,3.43642641]
[1738643031321,0.4651,214.97,214.96,1.30092641]
[1738643031322,37.83154783,214.97,214.96,1.30092641]
[1738643031610,13.41184853,214.96,214.95,0.03]
[1738643031793,22.9545993,214.96,214.95,0.03]
[1738643033912,59.32104713,214.96,214.95,0.0001]
[1738643034213,22.9545993,214.96,214.95,0.0001]
[1738643037885,23.4197993,214.96,214.95,0.0001]
[1738643038482,36.83164783,214.96,214.95,0.0001]
[1738643038686,20.0,214.93,214.89,0.03]
[1738643038909,22.9545993,214.9,214.89,0.03]
[1738643039299,23.4198993,214.9,214.89,0.03]
[1738643040918,81.1,214.89,214.78,6.0177]
[1738643041089,22.9545993,214.83,214.78,6.0177]
[1738643041995,22.9545993,214.85,214.79,0.25098]
[1738643042194,81.1,214.87,214.81,0.25098]
[1738643042865,104.0545993,214.87,214.81,0.25098]
[1738643043531,22.9545993,214.85,214.78,6.0177]
[1738643043704,22.9545993,214.83,214.78,6.0177]
[1738643044223,81.1,214.87,214.81,0.03]
[1738643044406,22.9545993,214.82,214.81,0.03]
[1738643045710,22.9545993,214.84,214.81,0.03]
[1738643045905,81.1,214.87,214.83,22.9545993]
[1738643046144,117.2545993,214.9,214.83,22.9545993]
[1738643046299,117.2545993,214.9,214.81,0.03]
[1738643046300,22.9545993,214.84,214.81,0.03]
[1738643046498,94.3,214.9,214.81,0.03]
[1738643046499,22.9545993,214.82,214.81,0.03]
[1738643047114,22.9545993,214.84,214.81,0.03]
[1738643050226,22.9545993,214.86,214.81,0.03]
[1738643050835,22.9545993,214.88,214.81,0.03]
[1738643051196,22.9545993,214.86,214.81,0.03]
[1738643052530,22.9545993,214.82,214.81,0.03]
[1738643052732,3.48,214.92,214.81,0.03]
[1738643052733,22.9545993,214.86,214.81,0.03]
[1738643053099,22.9545993,214.82,214.81,0.03]
[1738643055539,22.9545993,214.75,214.73,0.03]
[1738643060609,22.9545993,214.79,214.73,0.03]
[1738643060763,22.9545993,214.75,214.73,0.03]
[1738643062372,175.4,214.74,214.73,0.03]
[1738643066066,211.76644783,214.74,214.73,0.0001]
[1738643066749,188.81184853,214.74,214.73,0.0001]
[1738643066950,13.41184853,214.74,214.73,0.0001]
[1738643068270,22.9545993,214.75,214.73,0.0001]
[1738643068769,131.66644783,214.74,214.73,0.0001]
[1738643069075,20.0,214.71,214.67,0.03]
[1738643069247,22.9545993,214.68,214.67,0.03]
[1738643069454,37.36644783,214.68,214.59,0.03]
[1738643069675,22.9545993,214.6,214.59,0.03]
[1738643070179,22.9545993,214.62,214.59,0.03]
[1738643070689,22.9545993,214.64,214.59,0.03]
[1738643070979,22.9545993,214.66,214.59,0.03]
[1738643072066,22.9545993,214.68,214.6,36.61742783]
[1738643072855,26.3945993,214.7,214.62,22.9545993]
[1738643073059,22.9545993,214.7,214.64,0.25098]
[1738643073396,22.9545993,214.72,214.64,23.2055793]
[1738643073896,22.9545993,214.72,214.66,0.25098]
[1738643074067,22.9545993,214.72,214.64,22.9545993]
[1738643074378,22.9545993,214.66,214.61,6.0634]
[1738643074562,22.9545993,214.62,214.59,0.03]
[1738643074750,22.9545993,214.6,214.59,0.03]
[1738643078292,22.9545993,214.61,214.59,0.03]
[1738643078677,45.9091986,214.61,214.59,0.03]
[1738643079388,22.9545993,214.61,214.59,0.03]
[1738643080485,45.9091986,214.61,214.59,0.03]
[1738643080999,22.9545993,214.61,214.59,0.03]
[1738643083894,104.0545993,214.65,214.59,0.28098]
[1738643084267,22.9545993,214.65,214.59,0.28098]
[1738643084489,22.9545993,214.63,214.59,0.03]
[1738643084802,22.9545993,214.61,214.59,0.03]
[1738643086098,175.4,214.6,214.59,0.03]
[1738643086307,20.0,214.57,214.51,0.03]
[1738643086473,22.9545993,214.52,214.51,0.03]
[1738643089207,20.0,214.49,214.46,0.03]
[1738643089378,22.9545993,214.47,214.46,0.03]
[1738643090290,94.3,214.51,214.46,0.03]
[1738643090291,22.9545993,214.51,214.46,0.03]
[1738643091098,22.9545993,214.53,214.46,0.03]
[1738643091491,22.9545993,214.51,214.46,0.03]
[1738643092793,22.9545993,214.53,214.46,22.9845993]
[1738643092998,22.9545993,214.53,214.47,0.25098]
[1738643093703,108.71184853,214.6,214.47,0.25098]
[1738643093704,22.9545993,214.55,214.47,0.25098]
[1738643093899,22.9545993,214.53,214.47,0.25098]
[1738643096226,22.9545993,214.55,214.47,41.27992783]
[1738643096396,22.9545993,214.55,214.5,0.25098]
[1738643097101,117.2545993,214.57,214.5,0.25098]
[1738643097724,22.9545993,214.55,214.5,0.25098]
[1738643099122,22.9545993,214.55,214.5,4.91288]
[1738643099325,117.2545993,214.57,214.5,4.91288]
[1738643099633,22.9545993,214.57,214.5,4.91288]
[1738643099936,22.9545993,214.61,214.53,23.2055793]
[1738643100408,94.3,214.63,214.56,0.25098]
[1738643100409,22.9545993,214.63,214.56,0.25098]
[1738643100592,22.9545993,214.59,214.52,6.2816]
[1738643100795,22.9545993,214.57,214.52,6.2816]
[1738643101023,22.9545993,214.55,214.49,1.5107]
[1738643101605,22.9545993,214.53,214.49,1.5107]
[1738643101811,22.9545993,214.55,214.49,1.5107]
[1738643104112,22.9545993,214.55,214.49,1.5407]
[1738643104329,23.0175993,214.59,214.51,22.9545993]
[1738643105036,22.9545993,214.56,214.49,29.1573993]
[1738643106007,0.063,214.59,214.52,0.25098]
[1738643106213,0.063,214.59,214.54,0.25098]
[1738643106409,22.9545993,214.58,214.5,4.6618]
[1738643106606,22.9545993,214.56,214.5,4.6618]
[1738643106831,22.9545993,214.58,214.51,0.25098]
[1738643107129,22.9545993,214.56,214.51,0.25098]
[1738643107712,22.9545993,214.58,214.51,4.78709]
[1738643107899,22.9545993,214.56,214.51,0.12549]
[1738643108415,22.9545993,214.56,214.49,1.5407]
[1738643108725,22.9545993,214.52,214.49,0.03]
[1738643108931,22.9545993,214.54,214.5,0.12549]
[1738643109223,22.9545993,214.54,214.49,0.03]
[1738643109807,22.9545993,214.56,214.49,0.03]
[1738643110211,22.9545993,214.56,214.5,0.12549]
[1738643111632,81.163,214.59,214.49,0.03]
[1738643111633,22.9545993,214.54,214.49,0.03]
[1738643111841,22.9545993,214.56,214.49,0.03]
[1738643112006,81.163,214.59,214.52,22.9545993]
[1738643113104,22.9545993,214.58,214.5,27.8673793]
[1738643115934,0.063,214.59,214.55,0.12549]
[1738643116740,0.063,214.58,214.55,0.12549]
[1738643117040,0.063,214.58,214.55,0.25098]
[1738643117329,0.063,214.58,214.55,6.46918]
[1738643118032,0.063,214.58,214.55,1.80828]
[1738643118631,0.063,214.58,214.5,24.4614993]
[1738643118632,23.0175993,214.58,214.5,24.4614993]
[1738643118808,22.9545993,214.56,214.5,1.5069]
[1738643119010,0.063,214.58,214.5,1.5069]
[1738643119011,22.9545993,214.54,214.5,1.5069]
[1738643119428,0.063,214.58,214.5,1.5069]
[1738643119429,22.9545993,214.56,214.5,1.5069]
[1738643120207,23.0175993,214.58,214.51,0.12549]
[1738643120705,0.063,214.58,214.54,22.9545993]
[1738643121634,0.063,214.58,214.53,0.12549]
[1738643123423,0.063,214.58,214.54,0.12549]
[1738643125451,0.063,214.58,214.5,24.4614993]
[1738643125629,23.0175993,214.58,214.5,29.1233993]
[1738643126749,23.0175993,214.58,214.51,13.66282853]
[1738643126969,23.0175993,214.58,214.53,0.25098]
[1738643128355,0.063,214.58,214.53,0.25098]
[1738643128548,0.063,214.58,214.55,0.12549]
[1738643131359,0.063,214.58,214.57,0.12549]
[1738643131827,0.063,214.58,214.57,20.01063853]
[1738643132461,0.063,214.58,214.57,6.4733]
[1738643132630,0.063,214.58,214.52,25.31985897]
[1738643132831,0.063,214.58,214.55,0.12549]
[1738643133545,0.063,214.58,214.55,0.25098]
[1738643133744,0.063,214.58,214.57,0.12549]
[1738643134552,0.063,214.58,214.57,13.66282853]
[1738643134942,0.063,214.58,214.57,18.32322853]
[1738643135565,0.0001,214.59,214.57,22.67100677]
[1738643135738,0.063,214.7,214.64,13.66282853]
[1738643135938,0.063,214.7,214.67,14.32115897]
[1738643136132,0.063,214.7,214.68,0.12549]
[1738643136443,0.063,214.7,214.68,14.44664897]
[1738643137632,0.063,214.7,214.68,4.78349]
[1738643137866,0.063,214.7,214.69,0.12549]
[1738643138662,0.063,214.7,214.69,0.25098]
[1738643140546,0.063,214.7,214.69,14.57213897]
[1738643140758,0.063,214.7,214.69,19.22993897]
[1738643140980,0.063,214.7,214.69,32.6417875]
[1738643141268,0.063,214.7,214.69,14.57213897]
[1738643141850,0.063,214.7,214.69,0.25098]
[1738643142053,0.063,214.7,214.66,18.07014853]
[1738643142367,0.063,214.7,214.67,14.57213897]
[1738643142739,0.063,214.7,214.69,0.12549]
[1738643144679,0.063,214.7,214.68,0.12549]
[1738643145339,0.063,214.7,214.69,0.12549]
[1738643145541,0.063,214.7,214.69,14.44664897]
[1738643146225,0.063,214.7,214.69,27.9839875]
[1738643146652,0.063,214.8,214.73,20.25098]
[1738643146844,0.063,214.8,214.79,14.57213897]
[1738643147044,0.063,214.8,214.79,27.9839875]
[1738643147472,0.063,214.8,214.79,32.6396875]
[1738643148580,28.42257274,214.89,214.8,13.66282853]
[1738643148790,28.42257274,214.89,214.84,13.66282853]
[1738643148948,28.42257274,214.89,214.88,22.97172393]
[1738643149143,0.063,214.89,214.88,23.09721393]
[1738643149845,0.063,214.89,214.88,0.25098]
[1738643151060,0.063,214.89,214.88,23.09721393]
[1738643151574,0.063,214.89,214.88,36.50906246]
[1738643151880,0.063,215.03,214.94,0.25098]
[1738643152050,0.063,215.03,215.0,23.09721393]
[1738643152379,0.063,215.03,215.0,0.25098]
[1738643153369,0.063,215.03,215.0,0.12549]
[1738643154074,0.063,215.03,215.01,0.12549]
[1738643154251,0.063,215.03,215.02,22.97172393]
[1738643154766,0.063,215.03,215.02,37.20652402]
[1738643155848,0.063,215.03,215.02,41.85722402]
[1738643156073,0.063,215.03,215.02,41.15976246]
[1738643156449,0.063,215.03,215.02,23.09721393]
[1738643157850,0.063,215.03,215.02,0.25098]
[1738643158389,0.063,215.03,214.97,22.84623393]
[1738643158553,0.063,215.03,214.96,22.84623393]
[1738643158878,0.063,215.03,214.97,0.25098]
[1738643159258,22.90923393,215.03,214.95,22.84623393]
[1738643159454,22.90923393,215.03,214.93,22.84623393]
[1738643159455,22.84623393,215.0,214.93,22.84623393]
[1738643159773,22.84623393,215.0,214.94,0.25098]
[1738643160789,22.84623393,215.02,214.96,0.12549]
[1738643161082,0.063,215.03,214.99,22.84623393]
[1738643161480,22.84623393,215.02,214.94,22.84623393]
[1738643161794,22.84623393,215.02,214.95,0.25098]
[1738643162394,0.063,215.03,214.97,0.25098]
[1738643163695,0.063,215.03,215.01,0.12549]
[1738643163869,0.063,215.03,215.02,23.09721393]
[1738643164575,0.063,215.03,215.02,36.50906246]
[1738643164754,0.063,215.03,215.02,38.20649534]
[1738643164950,0.063,215.03,215.02,37.20649534]
[1738643165259,0.063,215.03,215.02,36.50906246]
[1738643165479,0.063,215.03,215.02,23.09721393]
[1738643165772,0.063,215.03,215.02,27.74791393]
[1738643165957,0.063,215.03,215.02,0.25098]
[1738643166151,0.063,215.03,214.95,1.0]
[1738643166152,0.063,215.03,214.98,22.84623393]
[1738643166482,0.063,215.03,215.0,22.84623393]
[1738643166780,0.063,215.03,215.01,0.25098]
[1738643167185,0.063,215.03,214.97,13.41184853]
[1738643167186,0.063,215.03,215.02,23.09721393]
[1738643167590,0.063,215.03,215.02,36.50906246]
[1738643167771,0.0001,215.03,215.02,48.35690191]
[1738643168096,0.03,215.17,215.11,0.12549]
[1738643168258,0.03,215.17,215.16,23.09721393]
[1738643168596,0.03,215.17,215.16,36.50906246]
[1738643168961,0.03,215.17,215.16,59.35529639]
[1738643169392,0.03,215.23,215.19,61.15606246]
[1738643169568,0.03,215.23,215.19,47.74421393]
[1738643170899,0.03,215.23,215.19,61.15606246]
[1738643172893,0.03,215.23,215.19,43.09721393]
[1738643174273,0.03,215.23,215.19,56.50906246]
[1738643174480,0.03,215.23,215.19,0.25098]
[1738643174997,22.84623393,215.22,215.15,22.84623393]
[1738643175700,22.84623393,215.22,215.16,0.25098]
[1738643175996,22.90923393,215.2,215.16,0.12549]
[1738643176393,22.84623393,215.18,215.09,22.84623393]
[1738643176891,22.84623393,215.18,215.12,0.25098]
[1738643177298,22.84623393,215.18,215.12,0.12549]
[1738643177475,22.84623393,215.16,215.12,0.12549]
[1738643177674,22.84623393,215.16,215.1,0.12549]
[1738643177994,22.84623393,215.14,215.07,22.84623393]
[1738643178167,22.84623393,215.14,215.06,0.25098]
[1738643179194,22.84623393,215.14,215.08,0.25098]
[1738643180296,22.84623393,215.14,215.08,4.90038]
[1738643180476,22.84623393,215.18,215.12,0.12549]
[1738643180679,6.3009,215.19,215.12,0.12549]
[1738643180885,118.73583393,215.2,215.14,0.25098]
[1738643181205,0.063,215.2,215.16,0.12549]
[1738643181699,0.063,215.2,215.18,0.25098]
[1738643181897,0.063,215.2,215.18,0.12549]
[1738643182796,0.063,215.2,215.15,22.84623393]
[1738643183099,0.063,215.2,215.13,22.84623393]
[1738643184105,0.063,215.2,215.14,0.25098]
[1738643184603,22.84623393,215.18,215.11,22.84623393]
[1738643184775,22.84623393,215.16,215.09,22.84623393]
[1738643184976,22.84623393,215.16,215.07,22.84623393]
[1738643185476,22.84623393,215.14,215.08,0.12549]
[1738643185890,22.84623393,215.09,215.0,22.84623393]
[1738643186102,22.84623393,215.07,215.0,22.84623393]
[1738643186277,22.84623393,215.07,215.01,0.12549]
[1738643186494,22.84623393,215.05,214.98,22.84623393]
[1738643186685,13.41184853,215.13,214.98,27.49773393]
[1738643186686,22.84623393,215.07,214.98,27.49773393]
[1738643186889,22.84623393,215.05,214.98,22.84623393]
[1738643187192,22.84623393,215.05,214.99,0.25098]
[1738643190410,22.84623393,215.05,214.99,18.31412853]
[1738643190587,22.84623393,215.12,215.05,0.25098]
[1738643190915,22.84623393,215.12,214.99,18.18863853]
[1738643190916,117.14623393,215.14,215.07,0.25098]
[1738643191713,22.84623393,215.12,215.04,22.84623393]
[1738643191888,22.84623393,215.1,215.02,22.84623393]
[1738643192077,22.84623393,215.12,215.04,22.84623393]
[1738643192282,22.84623393,215.12,215.05,0.25098]
[1738643193104,22.84623393,215.1,215.02,22.84623393]
[1738643193403,22.84623393,215.1,215.02,27.49673393]
[1738643193607,22.84623393,215.1,215.03,0.25098]
[1738643193804,117.14623393,215.14,215.07,0.25098]
[1738643193991,105.55883393,215.16,215.1,0.12549]
[1738643194312,105.55883393,215.16,215.08,0.12549]
[1738643194811,22.84623393,215.14,215.08,0.12549]
[1738643195112,22.84623393,215.12,215.05,22.84623393]
[1738643195367,22.84623393,215.1,215.01,22.84623393]
[1738643195516,22.84623393,215.1,215.04,0.25098]
[1738643195682,22.84623393,215.16,215.1,0.12549]
[1738643195881,22.84623393,215.16,215.07,42.84623393]
[1738643196285,22.84623393,215.16,215.1,0.25098]
[1738643196555,22.84623393,215.16,215.1,0.12549]
[1738643197991,22.84623393,215.14,215.07,22.84623393]
[1738643198316,22.84623393,215.12,215.05,10.0]
[1738643198503,22.84623393,215.12,215.06,0.25098]
[1738643199129,22.84623393,215.13,215.06,0.25098]
[1738643199437,22.84623393,215.11,215.06,0.25098]
[1738643202221,22.84623393,215.13,215.06,4.90078]
[1738643202393,87.14623393,215.15,215.12,0.12549]
[1738643202590,0.063,215.16,215.12,0.12549]
[1738643204418,22.84623393,215.15,215.07,22.84623393]
[1738643204719,0.063,215.16,215.14,22.84623393]
[1738643205037,0.063,215.16,215.15,0.25098]
[1738643205693,0.063,215.16,215.15,23.79424615]
[1738643205894,0.063,215.16,215.15,25.37514615]
[1738643206105,0.063,215.16,215.15,29.32601393]
[1738643208260,0.063,215.16,215.15,24.67811393]
[1738643210920,0.063,215.16,215.15,29.32601393]
[1738643212335,0.063,215.17,215.16,0.25098]
[1738643212634,0.03,215.23,215.19,43.09721393]
[1738643212802,0.03,215.23,215.19,0.12549]
[1738643213522,0.03,215.23,215.19,43.09721393]
[1738643213900,0.03,215.23,215.19,23.09721393]
[1738643214517,0.03,215.23,215.19,27.74421393]
[1738643214833,0.03,215.23,215.19,0.25098]
[1738643218038,22.84623393,215.21,215.14,22.84623393]
[1738643218329,22.84623393,215.22,215.16,0.25098]
[1738643218901,22.84623393,215.22,215.13,43.09721393]
[1738643219311,22.84623393,215.22,215.16,4.89868]
[1738643220933,0.03,215.23,215.19,23.09721393]
[1738643221748,0.03,215.23,215.19,22.97172393]
[1738643221952,0.03,215.23,215.12,0.03]
[1738643221953,22.90923393,215.2,215.12,4.6783]
[1738643222099,22.90923393,215.2,215.12,0.03]
[1738643222299,22.84623393,215.18,215.12,0.03]
[1738643223731,0.063,215.2,215.12,0.03]
[1738643223732,22.84623393,215.14,215.12,0.03]
[1738643224536,103.69246786,215.18,215.12,0.03]
[1738643224840,0.063,215.2,215.15,22.84623393]
[1738643225019,0.063,215.2,215.16,0.25098]
[1738643225698,0.063,215.2,215.13,22.84623393]
[1738643225904,0.063,215.2,215.14,0.25098]
[1738643226534,0.063,215.18,215.14,0.25098]
[1738643228809,0.063,215.18,215.14,0.12549]
[1738643229400,0.063,215.18,215.12,0.03]
[1738643229608,22.90923393,215.18,215.12,0.03]
[1738643229909,22.90923393,215.18,215.13,0.12549]
[1738643230837,22.84623393,215.16,215.12,0.03]
[1738643231520,22.84623393,215.14,215.12,0.03]
[1738643232905,161.94623393,215.17,215.12,0.03]
[1738643233313,22.84623393,215.16,215.12,0.03]
[1738643233943,22.84623393,215.13,215.12,0.03]
[1738643239142,22.84623393,215.13,215.05,10.0]
[1738643239143,20.0,215.1,215.05,10.0]
[1738643239434,22.84623393,215.06,215.05,10.0]
[1738643239636,176.64623393,215.12,215.05,10.0]
[1738643240232,22.84623393,215.15,215.07,22.84623393]
[1738643241230,22.84623393,215.12,215.06,0.25098]
[1738643241417,22.84623393,215.1,215.05,10.0]
[1738643241616,22.84623393,215.08,215.05,10.0]
[1738643242548,22.84623393,215.07,215.05,10.0]
[1738643243345,22.84623393,215.06,215.05,10.0]
[1738643243731,36.25808246,215.06,215.05,4.0347]
[1738643244050,36.25808246,215.06,215.05,0.0001]
[1738643244388,59.10431639,215.06,215.05,0.0001]
[1738643244536,36.25808246,215.06,215.05,0.0001]
[1738643245047,22.84623393,215.06,215.05,0.0001]
[1738643245728,22.84623393,215.08,215.05,0.0001]
[1738643245936,22.84623393,215.09,215.05,0.0001]
[1738643247862,65.29484599,215.11,215.06,0.12549]
[1738643248155,65.29484599,215.11,215.07,22.84623393]
[1738643248340,22.84623393,215.16,215.08,0.25098]
[1738643248531,88.14107992,215.17,215.1,0.12549]
[1738643248728,65.29484599,215.17,215.1,22.84623393]
[1738643248923,22.90923393,215.18,215.11,22.84623393]
[1738643249141,22.90923393,215.18,215.12,0.12549]
[1738643249656,0.063,215.14,215.12,0.12549]
[1738643250149,0.063,215.14,215.05,0.0301]
[1738643250150,22.90923393,215.14,215.05,0.0301]
[1738643250456,22.84623393,215.09,215.05,0.0301]
[1738643250631,22.84623393,215.11,215.05,0.15559]
[1738643251329,22.84623393,215.11,215.05,0.0301]
[1738643251635,58.6,215.13,215.05,0.0301]
[1738643251636,22.84623393,215.09,215.05,0.0301]
[1738643255152,81.44623393,215.11,215.05,0.0301]
[1738643255351,22.84623393,215.09,215.05,0.0301]
[1738643255744,22.84623393,215.07,215.05,0.0301]
[1738643259049,123.89484599,215.1,215.05,0.0301]
[1738643259050,22.84623393,215.09,215.05,0.0301]
[1738643259258,123.89484599,215.1,215.05,22.87633393]
[1738643260262,123.89484599,215.1,215.05,0.0301]
[1738643263060,22.84623393,215.11,215.05,0.0301]
[1738643263554,22.84623393,215.11,215.06,0.12549]
[1738643263862,65.29484599,215.13,215.1,22.84623393]
[1738643264032,0.063,215.14,215.1,22.84623393]
[1738643264227,0.063,215.14,215.11,0.12549]
[1738643264443,0.063,215.14,215.12,22.84623393]
[1738643264959,0.063,215.14,215.11,23.09721393]
[1738643266551,22.90923393,215.14,215.05,29.13793393]
[1738643266955,22.90923393,215.14,215.06,0.25098]
[1738643267262,22.90923393,215.14,215.08,0.12549]
[1738643267763,0.063,215.14,215.1,0.25098]
[1738643267946,0.063,215.14,215.12,0.12549]
[1738643268836,22.90923393,215.14,215.06,22.84623393]
[1738643269040,22.84623393,215.12,215.05,1.6417]
[1738643269441,22.84623393,215.12,215.06,0.12549]
[1738643269964,22.84623393,215.13,215.06,23.09721393]
[1738643270137,22.84623393,215.13,215.06,27.74701393]
[1738643270459,0.063,215.14,215.09,0.25098]
[1738643270666,0.063,215.14,215.1,0.25098]
[1738643272343,0.063,215.14,215.09,0.12549]
[1738643274765,0.063,215.14,215.12,22.97172393]
[1738643274961,0.063,215.14,215.13,23.09721393]
[1738643276363,0.063,215.14,215.13,27.74551393]
[1738643276948,0.063,215.14,215.13,35.35891393]
[1738643277352,0.063,215.14,215.13,30.71061393]
[1738643277968,0.063,215.14,215.11,22.84623393]
[1738643278166,0.063,215.14,215.09,22.84623393]
[1738643278375,0.063,215.14,215.08,6.0883]
[1738643278571,0.063,215.14,215.13,22.84623393]
[1738643278762,0.063,215.14,215.13,23.09721393]
[1738643280160,0.063,215.14,215.13,0.12549]
[1738643280363,0.063,215.14,215.09,22.84623393]
[1738643280854,0.063,215.14,215.1,0.25098]
[1738643281254,22.90923393,215.14,215.05,22.87633393]
[1738643281595,22.84623393,215.12,215.05,0.0301]
[1738643281761,22.84623393,215.12,215.06,0.25098]
[1738643282477,0.063,215.14,215.06,0.25098]
[1738643282478,22.90923393,215.14,215.06,0.25098]
[1738643282665,0.063,215.14,215.1,0.12549]
[1738643282865,0.063,215.14,215.1,0.25098]
[1738643283854,0.063,215.14,215.12,0.12549]
[1738643284256,0.063,215.14,215.13,22.97172393]
[1738643285191,0.063,215.14,215.13,23.09721393]
[1738643285360,0.063,215.14,215.13,29.34431393]
[1738643285988,0.063,215.14,215.13,24.69601393]
[1738643286651,0.063,215.14,215.13,0.12549]
[1738643286851,22.90923393,215.14,215.07,24.46793393]
[1738643287063,22.84623393,215.12,215.05,0.0301]
[1738643288370,22.84623393,215.1,215.05,0.0301]
[1738643291692,22.84623393,215.08,215.05,0.0301]
[1738643291879,20.0,215.1,215.05,0.0301]
[1738643291880,22.84623393,215.06,215.05,0.0301]
[1738643292091,22.84623393,215.08,215.05,0.0301]
[1738643293965,22.84623393,215.1,215.05,0.0301]
[1738643294312,81.44623393,215.12,215.06,0.12549]
[1738643294484,22.90923393,215.14,215.06,0.12549]
[1738643294907,0.063,215.14,215.08,0.12549]
[1738643295212,0.063,215.14,215.11,22.84623393]
[1738643295913,0.063,215.14,215.1,0.25098]
[1738643296481,0.063,215.14,215.09,22.84623393]
[1738643296978,0.063,215.14,215.11,10.0]
[1738643297178,22.84623393,215.12,215.03,22.84623393]
[1738643297383,22.84623393,215.12,214.98,4.6514]
[1738643297384,30.31233393,215.12,214.83,83.7383489]
[1738643297613,1.0,214.47,214.46,8.346e-05]
[1738643297905,1.0,214.62,214.46,48.12485547]
[1738643298116,131.2,214.61,214.46,8.346e-05]
[1738643298423,1.15876556,214.61,214.41,25.49260266]
[1738643298584,136.2,214.6,214.45,1.0]
[1738643298907,1.16469899,214.61,214.47,1.0]
[1738643299115,37.25565728,214.55,214.42,37.25565728]
[1738643299410,37.25565728,214.55,214.42,38.25565728]